bitfinex-derivatives/quotes_BTCF0:USTF0_20250527
["timestamp","ask_amount","ask_price","bid_price","bid_amount"]
[1748337384093,1.57341245,109690.0,109680.0,0.1362]
[1748337384290,1.457927,109690.0,109680.0,0.1362]
[1748337384494,1.57341245,109690.0,109680.0,0.1362]
[1748337385495,1.57441245,109690.0,109680.0,0.1392]
[1748337388090,1.57441245,109690.0,109680.0,0.046]
[1748337389097,1.57441245,109690.0,109680.0,0.006]
[1748337389290,1.9633013,109690.0,109650.0,0.10059431]
[1748337389496,0.65860215,109660.0,109650.0,0.39059431]
[1748337389801,1.47904215,109660.0,109650.0,0.32949431]
[1748337389999,1.91851019,109660.0,109650.0,0.3281263]
[1748337390607,1.7899567,109660.0,109650.0,0.3217]
[1748337390897,1.92785622,109660.0,109650.0,0.3217]
[1748337391102,1.92785622,109660.0,109650.0,0.3237]
[1748337391888,1.92785622,109660.0,109650.0,0.3247]
[1748337391889,1.92885622,109660.0,109650.0,0.3247]
[1748337392305,1.80030273,109660.0,109650.0,0.3247]
[1748337392506,1.92985622,109660.0,109650.0,0.3237]
[1748337393206,1.92985622,109660.0,109650.0,0.0337]
[1748337393402,1.92985622,109660.0,109650.0,0.1237]
[1748337394607,1.92985622,109660.0,109650.0,0.09639182]
[1748337394801,0.1823627,109630.0,109620.0,0.7628278]
[1748337395002,0.1823627,109630.0,109620.0,0.9328278]
[1748337395205,0.1823627,109630.0,109620.0,1.2740478]
[1748337395413,0.1823627,109630.0,109620.0,0.9784531]
[1748337395999,0.1853627,109630.0,109620.0,0.9804531]
[1748337396199,0.1883627,109630.0,109620.0,0.9814531]
[1748337396602,0.1883627,109630.0,109620.0,0.8902331]
[1748337397008,0.1883627,109630.0,109620.0,0.8816915]
[1748337397207,0.1883627,109630.0,109620.0,1.35146499]
[1748337397413,0.1873627,109630.0,109620.0,1.34946499]
[1748337397616,0.1843627,109630.0,109620.0,1.34846499]
[1748337397913,0.1863627,109630.0,109620.0,1.36339767]
[1748337398213,0.1863627,109630.0,109620.0,1.39549767]
[1748337399215,0.1863627,109630.0,109620.0,1.14549767]
[1748337399814,0.1863627,109630.0,109620.0,1.01694418]
[1748337400211,0.1863627,109630.0,109620.0,1.01702468]
[1748337400514,0.1863627,109630.0,109620.0,1.14557817]
[1748337400714,0.1863627,109630.0,109620.0,1.01702468]
[1748337402111,0.1863627,109630.0,109620.0,1.01701888]
[1748337403310,0.1863627,109630.0,109620.0,1.14557237]
[1748337403708,0.1864827,109630.0,109620.0,1.14557237]
[1748337404311,0.1864827,109630.0,109620.0,1.17587237]
[1748337404609,0.00412,109630.0,109620.0,1.17587237]
[1748337404810,0.00412,109630.0,109620.0,1.83559237]
[1748337405014,0.00013688,109640.0,109630.0,0.1823622]
[1748337405206,0.00013688,109640.0,109630.0,1.08312769]
[1748337405513,0.00025688,109640.0,109630.0,1.33312769]
[1748337407021,0.00025688,109640.0,109630.0,1.34166929]
[1748337407318,0.00025688,109640.0,109630.0,1.34366929]
[1748337407319,0.00125688,109640.0,109630.0,1.34366929]
[1748337407512,0.00225688,109640.0,109630.0,1.34666929]
[1748337407717,0.00225688,109640.0,109630.0,1.37906929]
[1748337408919,0.2279002,109660.0,109650.0,0.1823289]
[1748337409107,0.182319,109660.0,109650.0,0.8331289]
[1748337409308,0.182319,109660.0,109650.0,0.9899249]
[1748337409507,0.182439,109660.0,109650.0,0.9899249]
[1748337409703,0.182319,109660.0,109650.0,0.9899249]
[1748337409909,0.182439,109660.0,109650.0,0.9899249]
[1748337410127,0.182439,109660.0,109650.0,0.9984665]
[1748337410320,0.183439,109660.0,109650.0,1.0014665]
[1748337410819,0.184439,109660.0,109650.0,1.0044665]
[1748337411007,0.00212,109660.0,109650.0,1.0044665]
[1748337411519,0.1844323,109660.0,109650.0,0.9132705]
[1748337412022,0.2164323,109660.0,109650.0,0.9132705]
[1748337412223,0.2164323,109660.0,109650.0,0.9047289]
[1748337412810,0.2164323,109660.0,109650.0,0.95429401]
[1748337414511,0.2164323,109660.0,109650.0,0.96283586]
[1748337415623,0.2164323,109660.0,109650.0,0.91327075]
[1748337417023,0.2476323,109660.0,109650.0,0.91327075]
[1748337417634,0.2476323,109660.0,109650.0,1.07740016]
[1748337420325,0.2476323,109660.0,109650.0,1.24264524]
[1748337420527,0.2476323,109660.0,109650.0,1.17704524]
[1748337421329,0.2466323,109660.0,109650.0,1.23684524]
[1748337421520,0.2466323,109660.0,109650.0,1.23784524]
[1748337421721,0.2466323,109660.0,109650.0,1.23584524]
[1748337424931,0.2466323,109660.0,109650.0,1.22730339]
[1748337425430,0.2466323,109660.0,109650.0,1.06317398]
[1748337426031,0.2466323,109660.0,109650.0,1.0675658]
[1748337426730,0.2785323,109660.0,109650.0,1.0675658]
[1748337427134,0.2785323,109660.0,109650.0,1.01800069]
[1748337427432,0.2785323,109660.0,109650.0,1.02654254]
[1748337428828,0.2785323,109660.0,109650.0,0.96374254]
[1748337433630,0.2785323,109660.0,109650.0,0.99574254]
[1748337434536,0.2785323,109660.0,109650.0,1.02764254]
[1748337435735,0.2785323,109660.0,109650.0,1.07739167]
[1748337437032,0.6888923,109660.0,109650.0,1.07739167]
[1748337437630,0.6888923,109660.0,109650.0,1.06884982]
[1748337438542,0.6888923,109660.0,109650.0,1.23298509]
[1748337439240,0.6887723,109660.0,109650.0,1.26639717]
[1748337439739,0.6887723,109660.0,109650.0,1.2770863]
[1748337440739,0.6887723,109660.0,109650.0,1.28566017]
[1748337441738,0.6887723,109660.0,109650.0,1.1215249]
[1748337442039,0.6887723,109660.0,109650.0,1.11295103]
[1748337442235,0.18244218,109670.0,109660.0,0.1823124]
[1748337442431,0.03333688,109670.0,109660.0,1.01636589]
[1748337442632,0.00013688,109670.0,109660.0,1.10755389]
[1748337443135,0.00025688,109670.0,109660.0,1.10755389]
[1748337443441,0.00125688,109670.0,109660.0,1.10855389]
[1748337443743,0.00125688,109670.0,109660.0,1.2726881]
[1748337444142,0.00325688,109670.0,109660.0,1.2736881]
[1748337444341,0.00325688,109670.0,109660.0,1.38225297]
[1748337444942,0.00325688,109670.0,109660.0,1.42257949]
[1748337445441,0.00325688,109670.0,109660.0,1.26913441]
[1748337445846,0.03515688,109670.0,109660.0,1.67945441]
[1748337447143,0.03515688,109670.0,109660.0,1.84355759]
[1748337447347,0.3608,109700.0,109690.0,0.1822625]
[1748337447657,0.2922006,109710.0,109700.0,0.1822459]
[1748337447831,0.2922006,109710.0,109700.0,0.92764643]
[1748337447832,0.7025206,109710.0,109700.0,0.92764643]
[1748337448028,0.7026406,109710.0,109700.0,0.59724643]
[1748337449140,0.7046406,109710.0,109700.0,0.59824643]
[1748337449332,0.7046406,109710.0,109700.0,0.60679039]
[1748337450343,0.7046406,109710.0,109700.0,0.60779039]
[1748337450544,0.7361406,109710.0,109700.0,0.60563739]
[1748337451444,0.3258206,109710.0,109700.0,0.60563739]
[1748337451645,0.7361406,109710.0,109700.0,0.60563739]
[1748337452046,0.3258206,109710.0,109700.0,0.60563739]
[1748337452246,0.7361006,109710.0,109700.0,0.60563739]
[1748337453646,0.7361006,109710.0,109700.0,0.96643739]
[1748337455650,0.7361006,109710.0,109700.0,0.97082921]
[1748337456045,0.7361006,109710.0,109700.0,0.93962921]
[1748337456552,0.7402206,109710.0,109700.0,0.90922921]
[1748337457146,0.7402206,109710.0,109700.0,0.37044005]
[1748337457445,0.7402206,109710.0,109700.0,0.55268585]
[1748337460652,0.86465409,109710.0,109700.0,0.60208005]
[1748337460954,1.63869409,109710.0,109700.0,0.17983425]
[1748337461348,1.63869409,109710.0,109700.0,0.12993425]
[1748337461854,1.63869409,109710.0,109700.0,0.13432607]
[1748337462048,1.97984609,109710.0,109700.0,0.13432607]
[1748337462244,1.97984609,109710.0,109700.0,0.08442607]
[1748337464147,1.72984609,109710.0,109700.0,0.08442607]
[1748337467555,1.63869409,109710.0,109700.0,0.08442607]
[1748337469158,1.63869409,109710.0,109700.0,0.04439182]
[1748337473255,1.63869409,109710.0,109700.0,0.04758513]
[1748337476350,1.63833409,109710.0,109700.0,0.04758513]
[1748337478659,1.63421409,109710.0,109700.0,0.04758513]
[1748337478858,1.63833409,109710.0,109700.0,0.04758513]
[1748337479260,1.63821409,109710.0,109700.0,0.04758513]
[1748337480453,1.0993806,109710.0,109700.0,0.04758513]
[1748337480658,0.6906206,109710.0,109700.0,0.04758513]
[1748337480861,1.5097406,109710.0,109700.0,0.04758513]
[1748337481060,1.63829409,109710.0,109700.0,0.11108513]
[1748337481966,1.63829409,109710.0,109700.0,0.14188513]
[1748337482366,1.63817409,109710.0,109700.0,0.14188513]
[1748337483266,1.63829409,109710.0,109700.0,0.14188513]
[1748337483760,0.81929409,109710.0,109700.0,0.14188513]
[1748337484068,1.63829409,109710.0,109700.0,0.14188513]
[1748337484968,1.22805409,109710.0,109700.0,0.14188513]
[1748337485176,1.63829409,109710.0,109700.0,0.14188513]
[1748337486872,1.0351006,109710.0,109700.0,0.14188513]
[1748337487168,0.75489409,109710.0,109700.0,0.14188513]
[1748337487467,1.57389409,109710.0,109700.0,0.14188513]
[1748337488469,1.57389409,109710.0,109700.0,0.13869182]
[1748337488767,1.57389409,109710.0,109700.0,0.14510305]
[1748337489661,1.57389409,109710.0,109700.0,0.19394127]
[1748337493768,1.0351006,109710.0,109700.0,0.19394127]
[1748337493967,1.0309806,109710.0,109700.0,0.33618757]
[1748337494177,0.5907206,109710.0,109700.0,0.64618757]
[1748337494472,0.5907206,109710.0,109700.0,0.81026646]
[1748337494767,0.5906006,109710.0,109700.0,0.81026646]
[1748337494967,0.2299206,109710.0,109700.0,1.17106646]
[1748337495157,0.2299206,109710.0,109700.0,1.17319919]
[1748337495563,0.2299206,109710.0,109700.0,1.30175268]
[1748337495765,0.2298006,109710.0,109700.0,1.17319919]
[1748337495973,0.2299206,109710.0,109700.0,1.0091203]
[1748337496966,0.2299206,109710.0,109700.0,1.01810895]
[1748337497771,0.2299206,109710.0,109700.0,1.0091203]
[1748337498671,0.2299206,109710.0,109700.0,0.96028208]
[1748337500271,0.2605206,109710.0,109700.0,0.96028208]
[1748337500978,0.2605206,109710.0,109700.0,0.41723578]
[1748337501473,0.2605206,109710.0,109700.0,0.59948208]
[1748337503974,0.2605206,109710.0,109700.0,0.76354395]
[1748337504377,0.2913206,109710.0,109700.0,0.76354395]
[1748337506670,0.2913206,109710.0,109700.0,0.63004318]
[1748337506875,0.2913206,109710.0,109700.0,0.81228948]
[1748337507572,0.2913206,109710.0,109700.0,0.63004318]
[1748337507775,0.78479409,109710.0,109700.0,0.63004318]
[1748337508078,0.78479409,109710.0,109700.0,0.56754318]
[1748337508275,0.78479409,109710.0,109700.0,0.59984318]
[1748337508677,0.78479409,109710.0,109700.0,0.43578131]
[1748337509182,0.78479409,109710.0,109700.0,0.40348131]
[1748337509679,0.78479409,109710.0,109700.0,0.23134545]
[1748337510471,1.19311409,109710.0,109700.0,0.23134545]
[1748337513683,1.19511409,109710.0,109700.0,0.18359992]
[1748337514081,1.19511409,109710.0,109700.0,0.18459992]
[1748337516985,1.22571409,109710.0,109700.0,0.15279992]
[1748337519884,1.22571409,109710.0,109700.0,0.14639182]
[1748337521577,1.0971606,109710.0,109700.0,0.14639182]
[1748337521776,1.22571409,109710.0,109700.0,0.15708217]
[1748337521980,1.0971606,109710.0,109700.0,0.15708217]
[1748337522179,1.22571409,109710.0,109700.0,0.15708217]
[1748337522379,0.1863663,109700.0,109690.0,0.06429049]
[1748337522579,1.17981979,109700.0,109690.0,0.35429049]
[1748337523284,1.17981979,109700.0,109690.0,0.36283445]
[1748337523589,1.18081979,109700.0,109690.0,0.36383445]
[1748337524092,1.18181979,109700.0,109690.0,0.36483445]
[1748337524588,1.18181979,109700.0,109690.0,0.4050961]
[1748337525789,1.0532663,109700.0,109690.0,0.4050961]
[1748337526088,1.18181979,109700.0,109690.0,0.4050961]
[1748337527686,1.18181979,109700.0,109690.0,0.37300561]
[1748337528988,1.18181979,109700.0,109690.0,0.34080561]
[1748337529582,1.18181979,109700.0,109690.0,0.17080561]
[1748337530194,1.18181979,109700.0,109690.0,0.17519743]
[1748337532391,1.18181979,109700.0,109690.0,0.23809743]
[1748337532790,0.6430663,109700.0,109690.0,0.23809743]
[1748337532995,1.18185979,109700.0,109690.0,0.23809743]
[1748337535694,1.18185979,109700.0,109690.0,0.05060572]
[1748337535995,1.18185979,109700.0,109690.0,0.20060572]
[1748337536195,1.18185979,109700.0,109690.0,0.20499754]
[1748337536387,1.18185979,109700.0,109690.0,0.17229754]
[1748337536587,1.18185979,109700.0,109690.0,0.15439182]
[1748337537288,1.18185979,109700.0,109680.0,0.0766945]
[1748337537289,0.1822795,109680.0,109670.0,0.02060084]
[1748337537594,1.85475299,109680.0,109670.0,0.50701732]
[1748337537785,1.95095299,109680.0,109670.0,0.50701732]
[1748337538093,1.95095299,109680.0,109670.0,0.48778423]
[1748337538496,1.95195299,109680.0,109670.0,0.48778423]
[1748337538797,1.95195299,109680.0,109670.0,0.50152981]
[1748337538992,1.95199299,109680.0,109670.0,0.40201333]
[1748337539901,1.95299299,109680.0,109670.0,0.40301333]
[1748337540596,1.96195652,109680.0,109670.0,0.40301333]
[1748337542596,1.96195652,109680.0,109670.0,0.45110058]
[1748337543198,1.96195652,109680.0,109670.0,0.457509]
[1748337544594,1.96195652,109680.0,109670.0,0.41206342]
[1748337545394,1.96195652,109680.0,109670.0,0.41004682]
[1748337545698,1.96199652,109680.0,109670.0,0.41004682]
[1748337545899,1.96199652,109680.0,109670.0,0.44034682]
[1748337546698,1.96199652,109680.0,109670.0,0.44354646]
[1748337546899,1.96211652,109680.0,109670.0,0.44354646]
[1748337549003,1.96211652,109680.0,109670.0,0.44034682]
[1748337549896,1.96211652,109680.0,109670.0,0.39225957]
[1748337550197,1.96211652,109680.0,109670.0,0.36195957]
[1748337550403,1.96211652,109680.0,109670.0,0.29675957]
[1748337552203,1.96211652,109680.0,109670.0,0.35985957]
[1748337552404,1.83360303,109680.0,109670.0,0.35985957]
[1748337552600,0.95088303,109680.0,109670.0,0.39175957]
[1748337552809,1.76920303,109680.0,109670.0,0.39602958]
[1748337552997,1.89775652,109680.0,109670.0,0.39602958]
[1748337553395,1.89763652,109680.0,109670.0,0.39602958]
[1748337553598,1.89775652,109680.0,109670.0,0.39602958]
[1748337554599,1.92885652,109680.0,109670.0,0.39602958]
[1748337555701,1.96035652,109680.0,109670.0,0.39602958]
[1748337557906,1.96035652,109680.0,109670.0,0.402438]
[1748337560000,1.59955652,109680.0,109670.0,0.402438]
[1748337560914,1.59955652,109680.0,109670.0,0.39816799]
[1748337561910,1.59955652,109680.0,109670.0,0.39377617]
[1748337562814,1.59955652,109680.0,109670.0,0.39816799]
[1748337564202,1.59955652,109680.0,109670.0,0.41435524]
[1748337565513,1.59955652,109680.0,109670.0,0.35125524]
[1748337566105,1.59955652,109680.0,109670.0,0.38145524]
[1748337566314,1.18923652,109680.0,109670.0,0.38145524]
[1748337566613,1.59955652,109680.0,109670.0,0.41405524]
[1748337567517,1.59955652,109680.0,109670.0,0.35125524]
[1748337567932,1.70237125,109680.0,109670.0,0.35125524]
[1748337569327,1.70237125,109680.0,109670.0,0.34988749]
[1748337572335,1.47100303,109680.0,109670.0,0.34988749]
[1748337572536,1.70237125,109680.0,109670.0,0.34988749]
[1748337573232,1.70237125,109680.0,109670.0,0.33402736]
[1748337573424,2.06237125,109680.0,109670.0,0.33402736]
[1748337574541,2.06237125,109680.0,109670.0,0.33831075]
[1748337574734,1.70237125,109680.0,109670.0,0.33831075]
[1748337574929,1.72237125,109680.0,109670.0,0.33831075]
[1748337575742,1.70237125,109680.0,109670.0,0.33831075]
[1748337577044,1.29205125,109680.0,109670.0,0.33831075]
[1748337577335,1.72241125,109680.0,109670.0,0.33831075]
[1748337577938,1.72241125,109680.0,109670.0,0.17417088]
[1748337580845,1.72241125,109680.0,109670.0,0.12608363]
[1748337581955,1.31205125,109680.0,109670.0,0.12608363]
[1748337582248,1.72241125,109680.0,109670.0,0.12608363]
[1748337582638,2.08321125,109680.0,109670.0,0.12608363]
[1748337583243,1.85184303,109680.0,109670.0,0.12608363]
[1748337583442,2.08321125,109680.0,109670.0,0.12608363]
[1748337584349,2.08309125,109680.0,109670.0,0.12608363]
[1748337586653,2.08309125,109680.0,109670.0,0.07516043]
[1748337587056,2.25309125,109680.0,109670.0,0.07516043]
[1748337587351,2.25309125,109680.0,109670.0,0.07955225]
[1748337587352,1.84273125,109680.0,109670.0,0.07955225]
[1748337587544,2.25309125,109680.0,109670.0,0.07955225]
[1748337587852,2.3098655,109680.0,109670.0,0.08276039]
[1748337588148,2.3088655,109680.0,109670.0,0.08276039]
[1748337588353,2.3118655,109680.0,109670.0,0.08276039]
[1748337588545,2.3138655,109680.0,109670.0,0.08376039]
[1748337590041,1.90021778,109680.0,109660.0,0.0952]
[1748337590246,0.75769951,109670.0,109660.0,0.1805]
[1748337590448,0.78769951,109670.0,109660.0,0.1805]
[1748337590647,0.6720154,109670.0,109660.0,0.1805]
[1748337590855,0.78769951,109670.0,109660.0,0.1805]
[1748337591354,0.78969951,109670.0,109660.0,0.1805]
[1748337591753,0.79169951,109670.0,109660.0,0.1805]
[1748337591955,0.76169951,109670.0,109660.0,0.2105]
[1748337592958,0.77169951,109670.0,109660.0,0.2105]
[1748337593658,0.1823291,109650.0,109640.0,0.00854396]
[1748337593967,1.48037321,109650.0,109640.0,0.38244396]
[1748337594155,0.66293321,109650.0,109640.0,0.38244396]
[1748337594456,1.48037321,109650.0,109640.0,0.3739]
[1748337594861,1.48149321,109650.0,109640.0,0.3739]
[1748337595060,1.48149321,109650.0,109640.0,0.4065]
[1748337595358,1.48149321,109650.0,109640.0,0.40673138]
[1748337595653,1.51459321,109650.0,109640.0,0.40673138]
[1748337595848,1.51559321,109650.0,109640.0,0.40673138]
[1748337597956,1.52940152,109650.0,109640.0,0.40673138]
[1748337602064,1.41379741,109650.0,109640.0,0.40673138]
[1748337602357,1.11908152,109650.0,109640.0,0.40673138]
[1748337602660,1.52952152,109650.0,109640.0,0.40673138]
[1748337604457,1.52952152,109650.0,109640.0,0.4111232]
[1748337607763,1.52952152,109650.0,109640.0,0.41754041]
[1748337608766,1.16872152,109650.0,109640.0,0.41754041]
[1748337609063,1.52952152,109650.0,109640.0,0.41754041]
[1748337610857,1.41383741,109650.0,109640.0,0.41754041]
[1748337611058,1.51571321,109650.0,109640.0,0.41754041]
[1748337611462,1.51159321,109650.0,109640.0,0.41754041]
[1748337611665,1.51571321,109650.0,109640.0,0.41754041]
[1748337613860,1.54901321,109650.0,109640.0,0.41754041]
[1748337614660,1.57971321,109650.0,109640.0,0.41754041]
[1748337615162,1.57559321,109650.0,109640.0,0.41754041]
[1748337615368,1.57971321,109650.0,109640.0,0.41754041]
[1748337616667,1.16927321,109650.0,109640.0,0.41754041]
[1748337616870,1.57971321,109650.0,109640.0,0.41754041]
[1748337619670,1.57971321,109650.0,109640.0,0.38434041]
[1748337620469,1.57971321,109650.0,109640.0,0.41744041]
[1748337622570,1.4640291,109650.0,109640.0,0.41744041]
[1748337622868,1.57971321,109650.0,109640.0,0.41744041]
[1748337624371,1.57971321,109650.0,109640.0,0.4110232]
[1748337625165,1.57559321,109650.0,109640.0,0.4110232]
[1748337625366,1.57971321,109650.0,109640.0,0.4110232]
[1748337626272,1.57971321,109650.0,109640.0,0.3779232]
[1748337626468,1.57971321,109650.0,109640.0,0.38646716]
[1748337628572,1.69539732,109650.0,109640.0,0.38646716]
[1748337629676,1.69539732,109650.0,109640.0,0.43585823]
[1748337630975,1.69127732,109650.0,109640.0,0.40325823]
[1748337631174,1.74539732,109650.0,109640.0,0.34378693]
[1748337631369,1.5140291,109650.0,109640.0,0.18255823]
[1748337631680,1.74539732,109650.0,109640.0,0.18255823]
[1748337632175,1.74539732,109650.0,109640.0,0.18044709]
[1748337632577,1.74539732,109650.0,109640.0,0.36044709]
[1748337633173,1.69539732,109650.0,109640.0,0.36044709]
[1748337634186,1.69527732,109650.0,109640.0,0.36044709]
[1748337634979,1.69527732,109650.0,109640.0,0.31105602]
[1748337638781,1.69527732,109650.0,109640.0,0.08105602]
[1748337640372,1.69527732,109650.0,109640.0,0.0853384]
[1748337640769,1.70527732,109650.0,109640.0,0.0853384]
[1748337641579,1.89527732,109650.0,109640.0,0.0853384]
[1748337642993,1.95205157,109650.0,109640.0,0.07890558]
[1748337645293,2.98641157,109650.0,109640.0,0.07890558]
[1748337646687,2.16885157,109650.0,109640.0,0.0746232]
[1748337646893,2.98597157,109650.0,109640.0,0.1373232]
[1748337647284,2.16885157,109650.0,109640.0,0.1373232]
[1748337647589,2.86972746,109650.0,109640.0,0.1695232]
[1748337648195,2.98541157,109650.0,109640.0,0.1373232]
[1748337648387,2.16885157,109650.0,109640.0,0.14160558]
[1748337648693,2.98541157,109650.0,109640.0,0.14160558]
[1748337649383,2.16885157,109650.0,109640.0,0.14160558]
[1748337649584,2.98541157,109650.0,109640.0,0.14160558]
[1748337649779,2.98541157,109650.0,109640.0,0.1373232]
[1748337650488,3.34621157,109650.0,109640.0,0.1373232]
[1748337650897,3.34621157,109650.0,109640.0,0.1405325]
[1748337653697,3.34621157,109650.0,109640.0,0.1715325]
[1748337658008,2.23016335,109650.0,109640.0,0.1715325]
[1748337658213,2.03440335,109650.0,109640.0,0.4015325]
[1748337658408,2.43636335,109650.0,109640.0,0.4015325]
[1748337658607,2.96252746,109650.0,109640.0,0.4015325]
[1748337658803,2.96240746,109650.0,109640.0,0.4015325]
[1748337659004,2.96252746,109650.0,109640.0,0.4015325]
[1748337659205,2.14596746,109650.0,109640.0,0.4015325]
[1748337659404,2.96252746,109650.0,109640.0,0.4015325]
[1748337659609,2.97067321,109650.0,109640.0,0.40475602]
[1748337663320,1.93631321,109650.0,109640.0,0.40475602]
[1748337663708,1.94631321,109650.0,109640.0,0.40475602]
[1748337663910,1.93631321,109650.0,109640.0,0.40475602]
[1748337667921,1.57551321,109650.0,109640.0,0.40475602]
[1748337668123,1.4598291,109650.0,109640.0,0.40475602]
[1748337668316,1.57551321,109650.0,109640.0,0.40475602]
[1748337670724,1.57551321,109650.0,109640.0,0.40452464]
[1748337672223,1.10419321,109650.0,109640.0,0.40452464]
[1748337672521,0.69403321,109650.0,109640.0,0.40452464]
[1748337672726,1.51055321,109650.0,109640.0,0.40452464]
[1748337673026,1.3948691,109650.0,109640.0,0.40475602]
[1748337673227,1.51055321,109650.0,109640.0,0.40475602]
[1748337674030,0.69403321,109650.0,109640.0,0.40475602]
[1748337674222,1.51051321,109650.0,109640.0,0.40475602]
[1748337674722,1.10007321,109650.0,109640.0,0.40475602]
[1748337674923,1.51051321,109650.0,109640.0,0.45437742]
[1748337677925,0.69403321,109650.0,109640.0,0.45437742]
[1748337678333,1.50983321,109650.0,109640.0,0.40475602]
[1748337678532,0.69403321,109650.0,109640.0,0.40475602]
[1748337678732,1.50983321,109650.0,109640.0,0.40475602]
[1748337679137,1.50983321,109650.0,109640.0,0.24226781]
[1748337679436,1.57283321,109650.0,109640.0,0.24226781]
[1748337679831,1.57283321,109650.0,109640.0,0.24665963]
[1748337682339,1.57283321,109650.0,109640.0,0.34455963]
[1748337683639,1.57283321,109650.0,109640.0,0.31135963]
[1748337683829,1.57283321,109650.0,109640.0,0.24665963]
[1748337684640,1.57283321,109650.0,109640.0,0.29628087]
[1748337686934,1.57283321,109650.0,109640.0,0.28984805]
[1748337688326,1.57283321,109650.0,109640.0,0.29839201]
[1748337688532,1.68851732,109650.0,109640.0,0.29839201]
[1748337689144,1.68839732,109650.0,109640.0,0.29839201]
[1748337690230,1.74251732,109650.0,109640.0,0.29839201]
[1748337690435,1.74251732,109650.0,109640.0,0.1027884]
[1748337692050,1.79929157,109650.0,109640.0,0.1049614]
[1748337693038,1.79929157,109650.0,109640.0,0.05534016]
[1748337693239,1.74251732,109650.0,109640.0,0.04890856]
[1748337696947,1.74251732,109650.0,109640.0,0.05211835]
[1748337698051,1.74251732,109650.0,109640.0,0.01022105]
[1748337698250,1.92251732,109650.0,109640.0,0.01461287]
[1748337698457,1.92251732,109650.0,109640.0,0.02000007]
[1748337699454,1.92251732,109650.0,109640.0,7e-08]
[1748337699749,1.97929157,109650.0,109640.0,7e-08]
[1748337700352,1.97929157,109650.0,109640.0,0.00439189]
[1748337700650,1.97929157,109650.0,109640.0,9e-08]
[1748337701557,0.1864653,109640.0,109630.0,9e-08]
[1748337701739,0.8299653,109640.0,109630.0,9e-08]
[1748337701937,0.41374682,109620.0,109610.0,0.02352527]
[1748337702251,1.95118682,109620.0,109610.0,0.20352527]
[1748337702446,1.8125186,109620.0,109610.0,0.20352527]
[1748337702657,1.8125186,109620.0,109610.0,0.23502527]
[1748337702872,1.92820271,109620.0,109610.0,0.2423]
[1748337703066,2.04800682,109620.0,109610.0,0.18]
[1748337703260,2.10800682,109620.0,109610.0,0.18]
[1748337703573,2.11000682,109620.0,109610.0,0.18]
[1748337703764,1.99432271,109620.0,109610.0,0.18]
[1748337703970,1.88768884,109620.0,109610.0,0.18]
[1748337704168,2.00337295,109620.0,109610.0,0.18]
[1748337704470,1.88768884,109620.0,109610.0,0.18]
[1748337704671,2.11905706,109620.0,109610.0,0.18]
[1748337704872,1.88768884,109620.0,109610.0,0.18]
[1748337705072,2.11905706,109620.0,109610.0,0.18]
[1748337705276,1.88768884,109620.0,109610.0,0.18]
[1748337705473,2.11905706,109620.0,109610.0,0.18]
[1748337705874,2.20638558,109620.0,109610.0,0.18]
[1748337709080,2.07768884,109620.0,109610.0,0.18]
[1748337709266,2.20638558,109620.0,109610.0,0.18]
[1748337709467,2.20638558,109620.0,109610.0,0.18439182]
[1748337710168,2.07768884,109620.0,109610.0,0.18439182]
[1748337710375,2.20638558,109620.0,109610.0,0.18439182]
[1748337710875,2.07768884,109620.0,109610.0,0.18439182]
[1748337711069,2.20638558,109620.0,109610.0,0.18439182]
[1748337715077,2.02400698,109620.0,109600.0,0.1]
[1748337715278,0.1824282,109590.0,109580.0,0.0951]
[1748337715581,1.3749082,109590.0,109580.0,0.4351]
[1748337715781,1.3750282,109590.0,109580.0,0.4351]
[1748337715985,1.4056282,109590.0,109580.0,0.4351]
[1748337717481,1.53432494,109590.0,109580.0,0.4351]
[1748337717982,1.53732494,109590.0,109580.0,0.4351]
[1748337718282,1.54032494,109590.0,109580.0,0.4351]
[1748337718478,1.54032494,109590.0,109580.0,0.28356603]
[1748337718680,1.4758282,109590.0,109580.0,0.28356603]
[1748337718976,1.60452494,109590.0,109580.0,0.28356603]
[1748337719177,1.96944494,109590.0,109580.0,0.28356603]
[1748337719483,1.96944494,109590.0,109580.0,0.29634458]
[1748337721085,1.8407482,109590.0,109580.0,0.29634458]
[1748337721287,1.96944494,109590.0,109580.0,0.29634458]
[1748337721482,1.98296472,109590.0,109580.0,0.29634458]
[1748337722986,1.97884472,109590.0,109580.0,0.29634458]
[1748337723176,1.85426798,109590.0,109580.0,0.29634458]
[1748337723377,1.98296472,109590.0,109580.0,0.29634458]
[1748337723586,1.85426798,109590.0,109580.0,0.29634458]
[1748337723778,1.98296472,109590.0,109580.0,0.13185607]
[1748337723978,2.02296472,109590.0,109580.0,0.13185607]
[1748337724178,1.98296472,109590.0,109580.0,0.13185607]
[1748337724687,1.98296472,109590.0,109580.0,0.13624789]
[1748337725989,1.85426798,109590.0,109580.0,0.13624789]
[1748337726182,1.98296472,109590.0,109580.0,0.13624789]
[1748337726883,2.04296472,109590.0,109580.0,0.13624789]
[1748337727191,1.91426798,109590.0,109580.0,0.13624789]
[1748337727391,2.04296472,109590.0,109580.0,0.13624789]
[1748337730387,1.91426798,109590.0,109580.0,0.13624789]
[1748337730588,2.04296472,109590.0,109580.0,0.13624789]
[1748337731088,1.91426798,109590.0,109580.0,0.13624789]
[1748337731287,2.04296472,109590.0,109580.0,0.13624789]
[1748337731788,1.91426798,109590.0,109580.0,0.13624789]
[1748337731994,2.04296472,109590.0,109580.0,0.13624789]
[1748337732195,1.08258798,109590.0,109580.0,0.13624789]
[1748337732389,1.4261482,109590.0,109580.0,0.13624789]
[1748337732692,1.8409482,109590.0,109580.0,0.15044789]
[1748337732879,1.8408282,109590.0,109580.0,0.15044789]
[1748337733079,1.8409482,109590.0,109580.0,0.15044789]
[1748337733279,1.4302682,109590.0,109580.0,0.13624789]
[1748337733490,1.8409482,109590.0,109580.0,0.13624789]
[1748337733790,1.96552494,109590.0,109580.0,0.13624789]
[1748337733994,1.96552494,109590.0,109580.0,0.14052115]
[1748337733995,1.96964494,109590.0,109580.0,0.14052115]
[1748337734683,1.0090682,109590.0,109580.0,0.14052115]
[1748337734887,1.8368682,109590.0,109580.0,0.14052115]
[1748337735091,1.8368682,109590.0,109580.0,0.19974789]
[1748337735388,1.8367482,109590.0,109580.0,0.21394789]
[1748337735693,1.8368682,109590.0,109580.0,0.20116934]
[1748337736496,1.0049482,109590.0,109580.0,0.20116934]
[1748337736695,1.8368682,109590.0,109580.0,0.20116934]
[1748337736994,1.0049482,109590.0,109580.0,0.2054426]
[1748337737182,1.8368682,109590.0,109580.0,0.2054426]
[1748337738191,1.8368682,109590.0,109580.0,0.2118501]
[1748337738389,1.8367482,109590.0,109580.0,0.2118501]
[1748337738694,1.8368682,109590.0,109580.0,0.2118501]
[1748337738991,1.7871082,109590.0,109580.0,0.58521748]
[1748337739194,0.5799482,109590.0,109580.0,0.58521748]
[1748337739380,0.9906282,109590.0,109580.0,0.58521748]
[1748337739784,0.9905082,109590.0,109580.0,0.58094422]
[1748337740185,0.9906282,109590.0,109580.0,0.58094422]
[1748337740389,0.9905082,109590.0,109580.0,0.58094422]